[Event "Championnat du monde jeunes U12"]
[Date "2024.11.23"]
[White "Miransh Vyas"]
[Black "Radnaev, Leo"]
[WhiteElo "1705"]
[BlackElo "1990"]
[Round "8.33"]
[Result "0-1"]
[TimeControl "5400+30"]

1. d4 {[%clk 1:30:15]} 1... Nf6 {[%clk 1:30:54]} 2. Nc3 {[%clk 1:30:39]} 2... g6
{[%clk 1:31:19]} 3. Bf4 {[%clk 1:30:49]} 3... d5 {[%clk 1:31:37]} 4. e3 {[%clk
1:31:13]} 4... Bg7 {[%clk 1:31:49]} 5. h4 {[%clk 1:31:38]} 5... h6 {[%clk
1:21:03]} 6. Nf3 {[%clk 1:30:57]} 6... c6 {[%clk 1:16:12]} 7. Qd2 {[%clk
1:28:42]} 7... Nbd7 {[%clk 1:10:43]} 8. Bd3 {[%clk 1:22:52]} 8... b5 {[%clk
1:00:43]} 9. Ne5 {[%clk 1:12:31]} 9... Nxe5 {[%clk 0:59:28]} 10. Bxe5 {[%clk
1:06:27]} 10... Kf8 {[%clk 0:56:11]} 11. f3 {[%clk 0:57:56]} 11... Nd7 {[%clk
0:41:54]} 12. Bxg7+ {[%clk 0:52:47]} 12... Kxg7 {[%clk 0:42:19]} 13. e4 {[%clk
0:43:10]} 13... Nb6 {[%clk 0:34:04]} 14. Ne2 {[%clk 0:31:01]} 14... dxe4 {[%clk
0:31:28]} 15. fxe4 {[%clk 0:27:38]} 15... Bg4 {[%clk 0:26:02]} 16. O-O-O {[%clk
0:22:11]} 16... Rc8 {[%clk 0:21:51]} 17. Qf4 {[%clk 0:17:32]} 17... Bxe2 {[%clk
0:20:02]} 18. Bxe2 {[%clk 0:17:05]} 18... Qd6 {[%clk 0:20:24]} 19. e5 {[%clk
0:14:07]} 19... Qd5 {[%clk 0:17:24]} 20. Kb1 {[%clk 0:13:38]} 20... Qxg2 {[%clk
0:08:48]} 21. e6 {[%clk 0:06:03]} 21... Rhf8 {[%clk 0:07:55]} 22. Bf3 {[%clk
0:04:05]} 22... Qf2 {[%clk 0:05:44]} 23. exf7 {[%clk 0:02:55]} 23... Nd5 {[%clk
0:03:52]} 24. Qe5+ {[%clk 0:02:47]} 24... Kh7 {[%clk 0:04:17]} 25. Rhf1 {[%clk
0:01:53]} 25... Qxh4 {[%clk 0:03:38]} 26. Bxd5 {[%clk 0:01:09]} 26... cxd5
{[%clk 0:04:07]} 27. Rh1 {[%clk 0:01:29]} 27... Qe4 {[%clk 0:02:56]} 28. Qg5
{[%clk 0:00:45]} 28... Qxc2+ {[%clk 0:03:10]} 29. Ka1 {[%clk 0:01:11]} 29...
Qxd1+ {[%clk 0:02:50]} 30. Rxd1 {[%clk 0:01:22]} 30... hxg5 {[%clk 0:03:19]} 31.
Rh1+ {[%clk 0:01:41]} 31... Kg7 {[%clk 0:03:45]} 32. a3 {[%clk 0:02:06]} 32...
Rxf7 {[%clk 0:04:11]} 33. Rg1 {[%clk 0:02:31]} 33... Rf5 {[%clk 0:04:29]} 34.
Re1 {[%clk 0:02:57]} 34... Kf6 {[%clk 0:04:50]} 35. Ka2 {[%clk 0:03:19]} 35...
Rc4 {[%clk 0:05:13]} 36. Re3 {[%clk 0:03:40]} 36... Rxd4 {[%clk 0:05:36]} 37.
Rb3 {[%clk 0:04:07]} 37... a6 {[%clk 0:05:57]} 38. Re3 {[%clk 0:04:31]} 38... e5
{[%clk 0:06:23]} 39. Rc3 {[%clk 0:04:54]} 39... e4 {[%clk 0:06:44]} 40. Rc8
{[%clk 0:05:21]} 40... Ke5 {[%clk 0:07:07]} 41. Rg8 {[%clk 0:05:44]} 41... e3
{[%clk 0:07:32]} 42. Rxg6 {[%clk 0:06:08]} 42... e2 {[%clk 0:07:56]} 43. Rg8
{[%clk 0:06:35]} 43... Re4 {[%clk 0:08:15]} 44. Re8+ {[%clk 0:07:01]} 44... Kf4
{[%clk 0:08:36]} 45. Rxe4+ {[%clk 0:07:26]} 45... Kxe4 {[%clk 0:09:05]} 46. b4
{[%clk 0:07:50]} 46... e1=Q {[%clk 0:09:26]} 47. Kb3 {[%clk 0:08:16]} 47... Rf3+
{[%clk 0:09:48]} 48. Kc2 {[%clk 0:08:41]} 48... Qe2+ {[%clk 0:10:14]} 49. Kc1
{[%clk 0:09:05]} 49... Rf1# {[%clk 0:10:41]} 0-1

[Variant "Standard"]
[Site "Europe Echecs"]

[Event "Championnat du monde jeunes U12"]
[Date "2024.11.23"]
[White "Ritzerveld, Noah"]
[Black "Fadeev, Justin Michael"]
[WhiteElo "2285"]
[BlackElo "1878"]
[Round "8.34"]
[Result "1-0"]
[TimeControl "5400+30"]

1. e4 {[%clk 1:30:58]} 1... c5 {[%clk 1:30:47]} 2. Nf3 {[%clk 1:31:24]} 2... Nc6
{[%clk 1:31:05]} 3. d4 {[%clk 1:31:49]} 3... cxd4 {[%clk 1:31:29]} 4. Nxd4
{[%clk 1:32:14]} 4... Nf6 {[%clk 1:31:23]} 5. Nc3 {[%clk 1:32:39]} 5... e5
{[%clk 1:31:36]} 6. Ndb5 {[%clk 1:32:59]} 6... d6 {[%clk 1:31:47]} 7. Nd5 {[%clk
1:32:56]} 7... Nxd5 {[%clk 1:31:06]} 8. exd5 {[%clk 1:33:20]} 8... Nb8 {[%clk
1:31:01]} 9. a4 Be7 {[%clk 1:27:41]} 10. Be2 {[%clk 1:34:01]} 10... O-O {[%clk
1:27:28]} 11. Bd2 {[%clk 1:33:28]} 11... Na6 {[%clk 1:24:03]} 12. c4 {[%clk
1:25:25]} 12... Bf5 {[%clk 1:21:07]} 13. O-O {[%clk 1:22:22]} 13... Nc5 {[%clk
1:13:51]} 14. f4 {[%clk 1:14:28]} 14... Nd3 {[%clk 0:52:02]} 15. Bxd3 {[%clk
0:56:11]} 15... Bxd3 {[%clk 0:51:43]} 16. Ba5 {[%clk 0:56:11]} 16... Qxa5 {[%clk
0:51:17]} 17. Qxd3 {[%clk 0:56:36]} 17... exf4 {[%clk 0:49:53]} 18. Rxf4 {[%clk
0:55:28]} 18... Qb6+ {[%clk 0:44:49]} 19. Kh1 {[%clk 0:52:14]} 19... a6 {[%clk
0:41:38]} 20. Nd4 {[%clk 0:46:34]} 20... Qxb2 {[%clk 0:39:29]} 21. Rb1 {[%clk
0:43:33]} 21... Qa2 {[%clk 0:37:50]} 22. Nf5 {[%clk 0:38:30]} 22... Rfe8 {[%clk
0:32:39]} 23. Nxg7 {[%clk 0:29:46]} 23... Kxg7 {[%clk 0:30:32]} 24. Rxf7+ {[%clk
0:29:34]} 24... Kxf7 {[%clk 0:30:42]} 25. Qxh7+ {[%clk 0:29:59]} 25... Kf6
{[%clk 0:31:00]} 26. Rf1+ {[%clk 0:30:05]} 26... Ke5 {[%clk 0:30:45]} 27. Qd3
{[%clk 0:30:10]} 27... Qxg2+ {[%clk 0:28:11]} 28. Kxg2 {[%clk 0:30:35]} 28...
Rg8+ {[%clk 0:28:37]} 29. Kh1 {[%clk 0:30:57]} 29... Rg1+ {[%clk 0:28:58]} 30.
Kxg1 {[%clk 0:31:19]} 30... Rg8+ {[%clk 0:29:08]} 31. Kh1 {[%clk 0:31:45]} 31...
Rg1+ {[%clk 0:29:34]} 32. Kxg1 {[%clk 0:32:12]} 32... b5 {[%clk 0:29:59]} 33.
Rf5# {[%clk 0:32:38]} 1-0

[Variant "Standard"]
[Site "Europe Echecs"]

[Event "Championnat du monde jeunes U12"]
[Date "2024.11.23"]
[White "Ivancic, Ivan"]
[Black "Konstantinides, Savvas"]
[WhiteElo "2091"]
[BlackElo "1839"]
[Round "8.35"]
[Result "1/2-1/2"]
[TimeControl "5400+30"]

1. e4 {[%clk 1:30:53]} 1... c5 {[%clk 1:30:55]} 2. Nc3 {[%clk 1:30:29]} 2... a6
{[%clk 1:31:11]} 3. g3 {[%clk 1:30:20]} 3... b5 {[%clk 1:31:10]} 4. Bg2 {[%clk
1:30:37]} 4... Bb7 {[%clk 1:31:30]} 5. Nge2 {[%clk 1:30:20]} 5... e6 {[%clk
1:31:36]} 6. d4 cxd4 {[%clk 1:18:34]} 7. Nxd4 {[%clk 1:29:10]} 7... Bc5 {[%clk
1:16:41]} 8. O-O {[%clk 1:24:34]} 8... Ne7 {[%clk 1:13:35]} 9. Be3 {[%clk
1:15:39]} 9... d6 {[%clk 1:07:43]} 10. Qg4 {[%clk 1:11:56]} 10... O-O {[%clk
0:59:50]} 11. Rad1 {[%clk 1:00:10]} 11... Nd7 {[%clk 0:50:02]} 12. Rfe1 {[%clk
0:46:22]} 12... e5 {[%clk 0:36:18]} 13. Nf5 {[%clk 0:43:01]} 13... Nxf5 {[%clk
0:36:37]} 14. Qxf5 {[%clk 0:39:55]} 14... Qe7 {[%clk 0:34:39]} 15. Bg5 {[%clk
0:27:18]} 15... f6 {[%clk 0:29:29]} 16. Be3 {[%clk 0:24:54]} 16... Rac8 {[%clk
0:26:45]} 17. Bh3 {[%clk 0:22:39]} 17... Rfd8 {[%clk 0:23:36]} 18. Qe6+ {[%clk
0:22:20]} 18... Kf8 {[%clk 0:23:29]} 19. a3 {[%clk 0:18:43]} 19... Qxe6 {[%clk
0:23:36]} 20. Bxe6 {[%clk 0:19:10]} 20... Ke7 {[%clk 0:23:38]} 21. Bd5 {[%clk
0:16:22]} 21... Bxd5 {[%clk 0:21:39]} 22. Nxd5+ {[%clk 0:16:50]} 22... Ke6
{[%clk 0:19:17]} 23. c3 {[%clk 0:16:30]} 23... Bxe3 {[%clk 0:15:38]} 24. Rxe3
{[%clk 0:16:41]} 24... Rc6 {[%clk 0:15:20]} 25. f3 {[%clk 0:14:42]} 25... Rdc8
{[%clk 0:14:27]} 26. Kf2 {[%clk 0:12:57]} 26... Nb6 {[%clk 0:14:42]} 27. Nb4
{[%clk 0:10:40]} 27... Nc4 {[%clk 0:14:16]} 28. Re2 {[%clk 0:10:50]} 28... Rb6
{[%clk 0:14:26]} 29. Ra1 {[%clk 0:05:23]} 29... a5 {[%clk 0:13:53]} 30. Nd5
{[%clk 0:05:17]} 30... Rb7 {[%clk 0:13:06]} 31. Ke1 {[%clk 0:05:10]} 31... Nb6
{[%clk 0:13:16]} 32. Rd2 {[%clk 0:04:52]} 32... Nxd5 {[%clk 0:13:36]} 33. Rxd5
{[%clk 0:04:36]} 33... a4 {[%clk 0:09:45]} 34. Rad1 {[%clk 0:04:22]} 34... Rb6
{[%clk 0:09:51]} 35. Ke2 {[%clk 0:04:29]} 35... h5 {[%clk 0:09:57]} 36. h3
{[%clk 0:04:19]} 36... Rh8 {[%clk 0:09:51]} 37. Kf2 {[%clk 0:04:03]} 37... g6
{[%clk 0:10:10]} 38. Kg2 {[%clk 0:03:31]} 38... f5 {[%clk 0:10:10]} 39. R1d2
{[%clk 0:03:48]} 39... Rf8 {[%clk 0:09:08]} 40. Rd1 {[%clk 0:03:37]} 40... Rf6
{[%clk 0:07:08]} 41. R1d2 {[%clk 0:03:31]} 41... Ke7 {[%clk 0:07:21]} 42. Rd1
{[%clk 0:03:30]} 42... Ke6 {[%clk 0:07:12]} 43. R1d2 {[%clk 0:03:27]} 43... g5
{[%clk 0:07:04]} 44. Rd1 {[%clk 0:02:39]} 44... fxe4 {[%clk 0:06:00]} 45. fxe4
{[%clk 0:03:07]} 45... h4 {[%clk 0:06:15]} 46. Rf1 {[%clk 0:02:14]} 46... Rxf1
{[%clk 0:05:57]} 47. Kxf1 {[%clk 0:02:43]} 47... Rb8 {[%clk 0:04:05]} 48. Kg2
{[%clk 0:02:41]} 48... Kd7 {[%clk 0:04:22]} 49. Kf3 {[%clk 0:02:13]} 49... Kc6
{[%clk 0:04:24]} 50. gxh4 {[%clk 0:01:30]} 50... gxh4 {[%clk 0:04:47]} 51. Kg4
{[%clk 0:01:51]} 51... Rf8 {[%clk 0:05:13]} 52. Kxh4 {[%clk 0:01:45]} 52... Rf4+
{[%clk 0:05:40]} 53. Kg5 {[%clk 0:01:44]} 53... Rxe4 {[%clk 0:06:04]} 54. Rd2
{[%clk 0:02:00]} 54... Re1 {[%clk 0:06:18]} 55. h4 {[%clk 0:01:49]} 55... Rg1+
{[%clk 0:06:37]} 56. Kf5 {[%clk 0:01:19]} 56... Rh1 {[%clk 0:07:02]} 57. Ke6
{[%clk 0:00:51]} 57... Rxh4 {[%clk 0:07:16]} 58. Rxd6+ {[%clk 0:01:16]} 58...
Kc5 {[%clk 0:07:38]} 59. Rd5+ {[%clk 0:01:36]} 59... Kc4 {[%clk 0:07:56]} 60.
Rxe5 {[%clk 0:01:33]} 60... Rh2 {[%clk 0:07:18]} 61. Re4+ {[%clk 0:01:45]} 61...
Kb3 {[%clk 0:07:05]} 62. Rb4+ {[%clk 0:01:49]} 62... Ka2 {[%clk 0:07:30]} 63.
Rxb5 {[%clk 0:00:43]} 63... Rxb2 {[%clk 0:07:53]} 64. Rxb2+ {[%clk 0:00:56]}
64... Kxb2 {[%clk 0:08:17]} 65. c4 {[%clk 0:01:20]} 65... Kxa3 {[%clk 0:08:44]}
66. c5 {[%clk 0:01:43]} 66... Kb2 {[%clk 0:09:11]} 67. c6 {[%clk 0:02:07]} 67...
a3 {[%clk 0:09:38]} 68. c7 {[%clk 0:02:32]} 68... a2 {[%clk 0:10:04]} 69. c8=Q
{[%clk 0:02:56]} 69... a1=Q {[%clk 0:10:24]} 1/2-1/2

[Variant "Standard"]
[Site "Europe Echecs"]

[Event "Championnat du monde jeunes U12"]
[Date "2024.11.23"]
[White "Aadik Theophane Lenin"]
[Black "Nicot, Valentin"]
[WhiteElo "1857"]
[BlackElo "2078"]
[Round "8.36"]
[Result "1/2-1/2"]
[TimeControl "5400+30"]

1. d4 {[%clk 1:30:31]} 1... d5 {[%clk 1:30:30]} 2. c4 {[%clk 1:30:47]} 2... e6
{[%clk 1:30:40]} 3. Nf3 {[%clk 1:31:13]} 3... Nf6 {[%clk 1:30:26]} 4. Nc3 {[%clk
1:31:02]} 4... Be7 {[%clk 1:30:02]} 5. Bf4 {[%clk 1:30:54]} 5... O-O {[%clk
1:29:43]} 6. e3 c5 {[%clk 1:29:30]} 7. dxc5 {[%clk 1:31:29]} 7... Bxc5 {[%clk
1:29:43]} 8. Qc2 {[%clk 1:31:54]} 8... Qa5 {[%clk 1:27:24]} 9. Rd1 {[%clk
1:02:21]} 9... Nc6 {[%clk 1:25:21]} 10. a3 {[%clk 1:02:50]} 10... Be7 {[%clk
1:20:45]} 11. Be2 {[%clk 1:01:56]} 11... dxc4 {[%clk 1:13:22]} 12. Bxc4 {[%clk
1:02:24]} 12... e5 {[%clk 1:08:54]} 13. Bg3 {[%clk 1:02:51]} 13... Bg4 {[%clk
1:07:55]} 14. O-O {[%clk 1:03:16]} 14... Rac8 {[%clk 1:03:41]} 15. Nd5 {[%clk
0:58:28]} 15... Nxd5 {[%clk 0:47:11]} 16. Rxd5 {[%clk 0:49:44]} 16... Qc7 {[%clk
0:45:22]} 17. Qe4 {[%clk 0:45:08]} 17... Be6 {[%clk 0:44:17]} 18. Rd2 {[%clk
0:43:12]} 18... Bxc4 {[%clk 0:43:04]} 19. Qxc4 {[%clk 0:43:35]} 19... Bf6 {[%clk
0:41:47]} 20. Qg4 {[%clk 0:33:33]} 20... Rcd8 {[%clk 0:39:56]} 21. Rfd1 {[%clk
0:33:18]} 21... Rxd2 {[%clk 0:39:13]} 22. Rxd2 {[%clk 0:33:25]} 22... Rd8 {[%clk
0:39:30]} 23. h4 {[%clk 0:33:10]} 23... h6 {[%clk 0:36:59]} 24. Rc2 {[%clk
0:27:49]} 24... Qd7 {[%clk 0:36:27]} 25. Qxd7 {[%clk 0:27:58]} 25... Rxd7 {[%clk
0:36:51]} 26. Kf1 {[%clk 0:19:00]} 26... Kf8 {[%clk 0:35:49]} 27. Ke2 {[%clk
0:19:15]} 27... Ke7 {[%clk 0:35:02]} 28. h5 {[%clk 0:18:47]} 28... Ke6 {[%clk
0:33:47]} 29. Rc4 {[%clk 0:17:58]} 29... Rd5 {[%clk 0:30:55]} 30. Ne1 {[%clk
0:15:36]} 30... Be7 {[%clk 0:26:42]} 1/2-1/2

[Variant "Standard"]
[Site "Europe Echecs"]

[Event "Championnat du monde jeunes U12"]
[Date "2024.11.23"]
[White "Gao, Arthur"]
[Black "Isakov, Amin"]
[WhiteElo "1979"]
[BlackElo "1698"]
[Round "8.37"]
[Result "1-0"]
[TimeControl "5400+30"]

1. e4 {[%clk 1:30:55]} 1... c5 {[%clk 1:30:49]} 2. Nf3 {[%clk 1:31:16]} 2... e6
{[%clk 1:31:07]} 3. d4 {[%clk 1:31:40]} 3... cxd4 {[%clk 1:31:29]} 4. Nxd4
{[%clk 1:32:06]} 4... Nf6 {[%clk 1:31:39]} 5. Nc3 {[%clk 1:32:33]} 5... Nc6
{[%clk 1:31:55]} 6. Nxc6 {[%clk 1:32:40]} 6... bxc6 {[%clk 1:32:14]} 7. e5
{[%clk 1:33:00]} 7... Nd5 {[%clk 1:32:36]} 8. Ne4 {[%clk 1:33:27]} 8... Qc7
{[%clk 1:32:50]} 9. f4 {[%clk 1:33:53]} 9... Qb6 {[%clk 1:33:08]} 10. c4 {[%clk
1:33:59]} 10... Bb4+ {[%clk 1:33:25]} 11. Ke2 {[%clk 1:34:22]} 11... f5 {[%clk
1:33:41]} 12. exf6 {[%clk 1:34:44]} 12... Nxf6 {[%clk 1:34:05]} 13. Be3 {[%clk
1:35:07]} 13... Qd8 {[%clk 1:34:21]} 14. Nd6+ {[%clk 1:35:15]} 14... Bxd6 {[%clk
1:34:39]} 15. Qxd6 {[%clk 1:35:40]} 15... Bb7 {[%clk 1:34:54]} 16. Rd1 c5 {[%clk
1:34:50]} 17. Qxc5 {[%clk 1:35:46]} 17... Rc8 {[%clk 1:33:49]} 18. Qxa7 {[%clk
1:32:27]} 18... Qc7 {[%clk 1:28:54]} 19. b3 {[%clk 1:16:04]} 19... Ra8 {[%clk
1:22:00]} 20. Qb6 {[%clk 1:06:47]} 20... Rxa2+ {[%clk 1:06:15]} 21. Rd2 {[%clk
1:02:54]} 21... Qxb6 {[%clk 0:53:05]} 22. Bxb6 {[%clk 1:03:14]} 22... Ra3 {[%clk
0:51:16]} 23. Rb2 {[%clk 0:59:01]} 23... Nh5 {[%clk 0:50:36]} 24. Bc7 {[%clk
0:52:57]} 24... Ke7 {[%clk 0:29:56]} 25. c5 {[%clk 0:45:30]} 25... Rha8 {[%clk
0:28:44]} 26. Bd6+ {[%clk 0:34:19]} 26... Kd8 {[%clk 0:18:05]} 27. Rg1 {[%clk
0:13:39]} 27... Ra2 {[%clk 0:17:49]} 28. Rxa2 {[%clk 0:13:37]} 28... Rxa2+
{[%clk 0:18:11]} 29. Ke3 {[%clk 0:11:52]} 29... Ra1 {[%clk 0:17:36]} 30. Kf2
{[%clk 0:09:10]} 30... Nf6 {[%clk 0:17:39]} 31. g4 {[%clk 0:02:03]} 31... Ne4+
{[%clk 0:16:31]} 32. Ke3 {[%clk 0:02:25]} 32... Re1+ {[%clk 0:16:26]} 33. Kd4
{[%clk 0:01:25]} 33... Nxd6 {[%clk 0:14:53]} 34. cxd6 {[%clk 0:01:49]} 34... Ba6
{[%clk 0:15:13]} 35. Bxa6 {[%clk 0:02:14]} 35... Rxg1 {[%clk 0:15:35]} 36. Bb7
{[%clk 0:00:32]} 36... Rxg4 {[%clk 0:13:24]} 37. b4 {[%clk 0:00:33]} 37... Rxf4+
{[%clk 0:13:37]} 38. Kc5 {[%clk 0:00:55]} 38... e5 {[%clk 0:13:27]} 39. b5
{[%clk 0:00:53]} 39... e4 {[%clk 0:10:03]} 40. b6 {[%clk 0:00:55]} 40... e3
{[%clk 0:09:46]} 41. Ba6 {[%clk 0:01:05]} 41... Rf2 {[%clk 0:10:07]} 42. b7
{[%clk 0:01:22]} 42... Rb2 {[%clk 0:10:28]} 43. Bb5 {[%clk 0:01:46]} 43... Ke8
1-0

[Variant "Standard"]
[Site "Europe Echecs"]

[Event "Championnat du monde jeunes U12"]
[Date "2024.11.23"]
[White "El Zein, Bassam"]
[Black "Padure, Dragos-Alexandru"]
[WhiteElo "1947"]
[BlackElo "1822"]
[Round "8.38"]
[Result "1-0"]
[TimeControl "5400+30"]

1. Nf3 {[%clk 1:30:58]} 1... c5 {[%clk 1:30:50]} 2. g3 {[%clk 1:31:20]} 2... Nc6
{[%clk 1:30:51]} 3. Bg2 {[%clk 1:31:38]} 3... Nf6 {[%clk 1:31:03]} 4. c4 {[%clk
1:31:21]} 4... d5 {[%clk 1:31:21]} 5. cxd5 {[%clk 1:31:29]} 5... Nxd5 {[%clk
1:31:25]} 6. d4 e6 {[%clk 1:21:09]} 7. O-O {[%clk 1:30:26]} 7... Be7 {[%clk
1:13:34]} 8. dxc5 {[%clk 1:27:40]} 8... O-O {[%clk 1:13:02]} 9. a3 {[%clk
1:27:42]} 9... Bxc5 {[%clk 1:06:42]} 10. Qc2 {[%clk 1:23:37]} 10... Qe7 {[%clk
1:00:44]} 11. Rd1 {[%clk 1:20:51]} 11... Bb6 {[%clk 0:53:02]} 12. b4 {[%clk
1:11:52]} 12... h6 {[%clk 0:50:01]} 13. Bb2 {[%clk 1:11:04]} 13... Rd8 {[%clk
0:46:07]} 14. Nc3 {[%clk 1:10:13]} 14... Nf6 {[%clk 0:39:44]} 15. Rxd8+ {[%clk
1:08:01]} 15... Qxd8 {[%clk 0:37:55]} 16. Rd1 {[%clk 1:07:34]} 16... Qe7 {[%clk
0:35:42]} 17. Nb5 {[%clk 1:04:09]} 17... Ng4 {[%clk 0:28:59]} 18. e3 {[%clk
1:03:51]} 18... e5 {[%clk 0:23:51]} 19. Nd6 {[%clk 1:01:50]} 19... Bxe3 {[%clk
0:18:32]} 20. fxe3 {[%clk 1:01:23]} 20... Nxe3 {[%clk 0:19:01]} 21. Nxc8 {[%clk
1:01:09]} 21... Rxc8 {[%clk 0:19:00]} 22. Qe2 {[%clk 1:01:01]} 22... Nxd1 {[%clk
0:19:05]} 23. Qxd1 {[%clk 1:01:26]} 23... Rd8 {[%clk 0:15:47]} 24. Qe2 {[%clk
1:01:05]} 24... f6 {[%clk 0:15:30]} 25. h3 {[%clk 1:01:06]} 25... Qd6 {[%clk
0:14:44]} 26. Qc4+ {[%clk 1:01:07]} 26... Qd5 {[%clk 0:13:36]} 27. Nxe5 {[%clk
1:01:06]} 27... Qxc4 {[%clk 0:13:11]} 28. Nxc4 {[%clk 1:01:35]} 28... a6 {[%clk
0:12:01]} 29. Kf1 {[%clk 0:59:45]} 29... Kf7 {[%clk 0:11:33]} 30. Ke2 {[%clk
0:59:37]} 30... Ke6 {[%clk 0:10:25]} 31. Bc3 {[%clk 0:58:57]} 31... Rd7 {[%clk
0:04:32]} 32. Nb6 {[%clk 0:56:56]} 32... Rc7 {[%clk 0:03:51]} 33. Nd5 {[%clk
0:57:24]} 33... Rd7 {[%clk 0:03:31]} 34. Nb6 {[%clk 0:57:19]} 34... Rc7 {[%clk
0:03:38]} 35. Na4 {[%clk 0:57:44]} 35... Kd6 {[%clk 0:02:58]} 36. Nc5 {[%clk
0:58:08]} 36... Nd8 {[%clk 0:02:04]} 37. Bd2 {[%clk 0:58:16]} 37... Re7+ {[%clk
0:01:36]} 38. Kd3 {[%clk 0:58:23]} 38... Kc7 {[%clk 0:01:32]} 39. Bf4+ {[%clk
0:57:15]} 39... Kb6 {[%clk 0:01:38]} 40. Bb8 {[%clk 0:56:47]} 40... Nc6 {[%clk
0:01:10]} 41. Na4+ {[%clk 0:57:16]} 41... Kb5 {[%clk 0:01:29]} 42. Nc3+ {[%clk
0:57:45]} 42... Kb6 {[%clk 0:01:35]} 43. Nd5+ {[%clk 0:58:14]} 43... Kb5 {[%clk
0:01:55]} 44. Nxe7 {[%clk 0:58:38]} 44... Nxe7 {[%clk 0:02:23]} 45. Bxb7 {[%clk
0:58:59]} 45... a5 {[%clk 0:02:36]} 46. bxa5 {[%clk 0:59:17]} 46... Kxa5 {[%clk
0:03:04]} 47. Bf3 {[%clk 0:59:00]} 47... Ka4 {[%clk 0:03:26]} 48. Bd1+ {[%clk
0:59:28]} 48... Ka5 {[%clk 0:03:36]} 49. Bc7+ {[%clk 0:59:53]} 49... Kb5 {[%clk
0:04:02]} 50. a4+ {[%clk 1:00:18]} 50... Kc6 {[%clk 0:04:29]} 51. Bf4 {[%clk
1:00:35]} 51... g5 {[%clk 0:04:53]} 52. Be3 {[%clk 1:01:00]} 52... f5 {[%clk
0:05:11]} 53. Bf3+ {[%clk 1:01:26]} 53... Kc7 {[%clk 0:05:23]} 54. a5 {[%clk
1:01:51]} 54... g4 {[%clk 0:05:24]} 55. hxg4 {[%clk 1:02:07]} 55... fxg4 {[%clk
0:05:51]} 56. Bxg4 {[%clk 1:02:36]} 56... Kb7 {[%clk 0:05:47]} 57. Bxh6 {[%clk
1:02:56]} 57... Ka6 {[%clk 0:06:15]} 58. Bd2 {[%clk 1:03:17]} 58... Nc6 {[%clk
0:06:31]} 59. Bc8+ {[%clk 1:03:34]} 1-0

[Variant "Standard"]
[Site "Europe Echecs"]

[Event "Championnat du monde jeunes U12"]
[Date "2024.11.23"]
[White "Petrovski, Nikola"]
[Black "Rueda Ahumada, Gabriel Omar"]
[WhiteElo "1829"]
[BlackElo "1928"]
[Round "8.39"]
[Result "0-1"]
[TimeControl "5400+30"]

1. e4 {[%clk 1:30:21]} 1... e5 {[%clk 1:30:50]} 2. Nf3 {[%clk 1:30:49]} 2... Nc6
{[%clk 1:31:10]} 3. Bc4 {[%clk 1:31:13]} 3... Nf6 {[%clk 1:31:32]} 4. d3 {[%clk
1:30:52]} 4... Be7 {[%clk 1:31:51]} 5. O-O {[%clk 1:31:07]} 5... O-O {[%clk
1:31:06]} 6. c3 {[%clk 1:31:29]} 6... d6 {[%clk 1:31:27]} 7. Re1 Na5 {[%clk
1:30:13]} 8. Bb5 {[%clk 1:30:38]} 8... a6 {[%clk 1:30:33]} 9. Ba4 {[%clk
1:31:04]} 9... b5 {[%clk 1:30:56]} 10. Bc2 {[%clk 1:31:28]} 10... c5 {[%clk
1:31:21]} 11. Nbd2 {[%clk 1:31:38]} 11... Re8 {[%clk 1:26:24]} 12. Nf1 {[%clk
1:31:59]} 12... Nc6 {[%clk 1:24:47]} 13. Ng3 {[%clk 1:30:58]} 13... h6 {[%clk
1:21:17]} 14. h3 {[%clk 1:30:38]} 14... Nh7 {[%clk 1:17:32]} 15. d4 {[%clk
1:21:59]} 15... cxd4 {[%clk 1:11:57]} 16. cxd4 {[%clk 1:16:18]} 16... Ng5 {[%clk
1:12:10]} 17. Bxg5 {[%clk 1:09:04]} 17... Bxg5 {[%clk 1:12:33]} 18. Bb3 {[%clk
1:08:04]} 18... Nxd4 {[%clk 1:03:50]} 19. Nxd4 {[%clk 1:03:32]} 19... exd4
{[%clk 1:04:13]} 20. e5 {[%clk 0:52:12]} 20... Be6 {[%clk 0:54:59]} 21. Qxd4
{[%clk 0:38:21]} 21... dxe5 {[%clk 0:53:45]} 22. Qxe5 {[%clk 0:32:39]} 22...
Bxb3 {[%clk 0:40:18]} 23. Qxe8+ {[%clk 0:32:59]} 23... Qxe8 {[%clk 0:40:43]} 24.
Rxe8+ {[%clk 0:33:20]} 24... Rxe8 {[%clk 0:41:07]} 25. axb3 {[%clk 0:33:48]}
25... Re6 {[%clk 0:41:28]} 26. Kf1 {[%clk 0:28:43]} 26... Bf6 {[%clk 0:41:49]}
27. Ra2 {[%clk 0:28:05]} 27... g6 {[%clk 0:36:51]} 28. Ne2 {[%clk 0:20:16]}
28... Kf8 {[%clk 0:33:59]} 29. Nf4 {[%clk 0:19:13]} 29... Rc6 {[%clk 0:32:19]}
30. Nd3 {[%clk 0:19:28]} 30... Be7 {[%clk 0:27:09]} 31. g3 {[%clk 0:16:22]}
31... Ke8 {[%clk 0:25:41]} 32. Ke2 {[%clk 0:16:10]} 32... Kd8 {[%clk 0:24:58]}
33. Ra1 {[%clk 0:14:26]} 33... Kc8 {[%clk 0:23:53]} 34. Rc1 {[%clk 0:14:36]}
34... Rxc1 {[%clk 0:23:40]} 35. Nxc1 {[%clk 0:14:59]} 35... Kd7 {[%clk 0:24:03]}
36. Nd3 {[%clk 0:14:50]} 36... Ke6 {[%clk 0:24:09]} 37. Ke3 {[%clk 0:15:01]}
37... Kd5 {[%clk 0:24:16]} 38. f4 {[%clk 0:14:31]} 38... Bc5+ {[%clk 0:17:37]}
39. Kf3 {[%clk 0:13:30]} 39... f6 {[%clk 0:16:08]} 40. g4 {[%clk 0:06:16]} 40...
a5 {[%clk 0:16:17]} 41. h4 {[%clk 0:05:29]} 41... Bd4 {[%clk 0:15:28]} 42. f5
{[%clk 0:04:29]} 42... g5 {[%clk 0:15:21]} 43. hxg5 {[%clk 0:04:31]} 43... hxg5
{[%clk 0:15:49]} 44. Ke2 {[%clk 0:01:56]} 44... Ke4 {[%clk 0:15:58]} 45. b4
{[%clk 0:01:04]} 45... axb4 {[%clk 0:13:46]} 46. Nxb4 {[%clk 0:01:26]} 46...
Bxb2 {[%clk 0:14:08]} 47. Nd3 {[%clk 0:01:33]} 47... Bc3 {[%clk 0:14:16]} 0-1

[Variant "Standard"]
[Site "Europe Echecs"]